Cogmind - Beta 17 @@@ ROGUE MODE // 2026.06.25 @ 02:14:36 Player: KeKe Result: Smashed by cave-in Performance ------------- Evolutions (0) 0 Regions Visited (2) 400 Robots Destroyed (31) 155 Value Destroyed (742) 742 Prototype IDs (2) 40 Alien Tech Used (0) 0 Bonus (-19) -19 TOTAL SCORE: 1318 Bonus ------- Friendly Fire -19 Cogmind --------- Core Integrity 0/250 Matter 175/300 Energy 100/100 System Corruption 7% Temperature Cool (0) Movement Core (50) Location -10/Subcaves Parts ------- > --- POWER (1) -------- (None) > --- PROPULSION (2) --- Light Treads Spiked Treads > --- UTILITY (2) ------ Sensor Array > --- WEAPON (2) ------- (None) > --- INVENTORY (5) ---- Ion Engine Light Treads Aluminum Leg High-capacity Matter Pod (0) Peak State ------------ > --- POWER ------------ Ion Engine > --- PROPULSION ------- Wheel Compact Wheel > --- UTILITY ---------- Heat Sink Huge Storage Unit > --- WEAPON ----------- Light Assault Rifle Heavy Hammer > --- INVENTORY -------- Ion Engine Ion Engine Light Treads Light Treads Aluminum Leg Aluminum Leg High-capacity Matter Pod Sensor Array Seismic Detector Light Armor Plating Grenade Launcher [Rating: 9] Favorites ----------- Power Ion Engine Engine Ion Engine Propulsion Compact Wheel Treads Light Treads Leg Aluminum Leg Wheel Compact Wheel Utility Small Storage Unit Device Heat Sink Storage Small Storage Unit Weapon Small Laser Energy Gun Small Laser Ballistic Gun Light Assault Rifle Launcher Grenade Launcher Impact Weapon Heavy Hammer Build | -11 -10 -10 ------- Run | Yrd Mat Sub Slots Evolved . | . . . Power . | . . . Propulsion . | . . . Utility . | . . . Weapon . | . . . Parts Attached 17 | 2 12 3 Power 1 | . . 1 Engine 1 | . . 1 Core . | . . . Reactor . | . . . Propulsion 6 | 2 3 1 Treads 3 | . 2 1 Leg . | . . . Wheel 3 | 2 1 . Hover . | . . . Flight . | . . . Utility 5 | . 4 1 Device 3 | . 2 1 Storage 2 | . 2 . Processor . | . . . Hackware . | . . . Protection . | . . . Artifact . | . . . Weapon 5 | . 5 . Energy Gun 2 | . 2 . Energy Cannon . | . . . Ballistic Gun 1 | . 1 . Ballistic Cannon . | . . . Launcher 1 | . 1 . Special Weapon . | . . . Impact Weapon 1 | . 1 . Slashing Weapon . | . . . Piercing Weapon . | . . . Special Melee Weapon . | . . . Unidentified Prototypes . | . . . Parts Lost 11 | . 4 7 Power 2 | . . 2 Propulsion 3 | . 2 1 Utility 2 | . . 2 Weapon 4 | . 2 2 Highest Loss Streak 3 | . 2 3 To Critical Strikes . | . . . Average Backups 7 | 6 10 6 Power 1 | 1 1 1 Propulsion 3 | 4 3 2 Utility . | . 3 2 Weapon 1 | 1 2 . Tool/Special . | . . . Unused Backups 14 | 4 1 9 Power 3 | 1 . 2 Propulsion 2 | . . 2 Utility 4 | 1 1 2 Weapon 5 | 2 . 3 Tool/Special . | . . . Average Slot Usage (%) 83 | . 94 57 Engine 10 | . 14 3 Treads 10 | . 5 20 Wheel 16 | . 21 3 Device 10 | . 12 4 Storage 11 | . 14 3 Energy Gun 5 | . 8 . Ballistic Gun 1 | . 2 . Launcher 6 | . 6 6 Impact Weapon 10 | . 8 14 Peak Build Rating 9 | 6 9 9 Average Rating 6 | 6 8 5 On Entrance 7 | 6 6 9 Avg Prop Armor Cover (%) 24 | . 12 30 Naked Turns . | . . . Heaviest Build 92 | 12 92 92 Greatest Support 26 | 26 26 16 Greatest Overweight (x) 5 | . 5 5 Average Overweight (x) 1 | . 2 . Largest Inventory Capacity 25 | 8 25 25 Average Capacity 10 | 8 19 9 Most Carried 14 | 6 14 13 Average Carried 7 | 6 10 6 Final Capacity 25 | 8 25 5 Final Carried 13 | 6 13 4 Class Distribution -------------------- 100% | Mutant Dominant Class ---------------- Mutant | -10/Materials Mutant | -10/Subcaves Resources | -11 -10 -10 ----------- Run | Yrd Mat Sub Matter Collected 584 | 200 249 135 Remotely . | . . . Salvage Created 605 | . 510 95 Parts 42 | . 37 5 Haulers Intercepted . | . . . Recyclers Shooed 1 | . 1 . Parts Field Recycled . | . . . Retrieved Matter . | . . . Parts Self-Destructed 6 | . . 6 Prevented . | . . . Parts Restored . | . . . Kills | -11 -10 -10 ------- Run | Yrd Mat Sub Combat Hostiles Destroyed 24 | . 20 4 Melee 3 | . 1 2 Guns 4 | . 4 . AOE 16 | . 14 2 Classes Destroyed 7 | . 6 1 Builder 2 | . 2 . Tunneler 1 | . 1 . Operator 2 | . 2 . Watcher 2 | . 2 . Swarmer 9 | . 9 . Grunt 12 | . 11 1 Subdweller 3 | . . 3 Best Kill Streak 7 | . 7 2 Combat Bots Only 6 | . 6 2 Max Kills in Single Turn 3 | . 3 1 Gunslinging . | . . . Exploded 3 | . 3 1 Melee 1 | . 1 1 Uniques/NPCs Destroyed . | . . . Combat | -11 -10 -10 -------- Run | Yrd Mat Sub Hostile Shots Fired 83 | . 59 24 Missed 23 | . 19 4 Hits 60 | . 40 20 Projectile 60 | . 40 20 Critical Strikes 3 | . 1 2 Damage Taken 1312 | . 492 820 Core 268 | . 86 182 Absorbed by Shields . | . . . Core Remaining (%) 100 | 100 . . Volleys Fired 44 | . 35 9 Largest 2 | . 2 1 Hottest 80 | . 80 30 Shots Fired 65 | . 56 9 Gun 43 | . 43 . Cannon . | . . . Launcher 22 | . 13 9 Special . | . . . Kinetic 16 | . 16 . Thermal . | . . . Explosive 22 | . 13 9 Electromagnetic 27 | . 27 . Robot Hit Streak 7 | . 7 6 Robot Miss Streak 2 | . 2 1 Penetration Max . | . . . Secondary Targets . | . . . Shots Hit Robots 57 | . 43 14 Core Hits 40 | . 32 8 Critical Kills . | . . . Critical Parts Destroyed 1 | . 1 . Critical Strikes 2 | . 2 . Corrupt 1 | . 1 . Smash 1 | . 1 . Melee Attacks 39 | . 13 26 Impact 39 | . 13 26 Slashing . | . . . Piercing . | . . . Sneak Attacks 3 | . 3 . Combat Hostiles . | . . . Follow-up Attacks . | . . . Damage Inflicted 2508 | . 1819 689 Guns 332 | . 332 . Cannons . | . . . Explosions 1553 | . 1102 451 Melee 623 | . 385 238 Ramming . | . . . Kinetic 86 | . 86 . Thermal 57 | . 57 . Explosive 1496 | . 1045 451 Electromagnetic 246 | . 246 . Impact 623 | . 385 238 Slashing . | . . . Piercing . | . . . Highest Corruption 4 | . . 4 Average Corruption 4 | . . 4 Corruption Purged . | . . . Corruption Blocked . | . . . Effects 3 | . . 3 Message Errors 1 | . . 1 Matter Fused 1 | . . 1 Data Loss (minor) 1 | . . 1 Overload Shots . | . . . Overflow Damage 251 | . 248 3 Projectiles . | . . . Explosions 3 | . . 3 Melee 248 | . 248 . Knockbacks 3 | . 2 1 Impact 3 | . 2 1 Kinetic . | . . . Secondary . | . . . Self-Inflicted Damage 135 | . 27 108 Shots 8 | . 1 7 Rammed . | . . . Targets Rammed . | . . . Kicked . | . . . Crushed . | . . . Highest Temperature 135 | . 135 . Average Temperature 48 | . 48 . Received Heat Transfer 327 | . 213 114 Siege Activations . | . . . Martial Activations . | . . . Shielding Activations . | . . . Robots Disrupted . | . . . Combat Hostiles . | . . . Robots Corrupted 4 | . 4 . Combat Hostiles 1 | . 1 . Parts Fried 3 | . 3 . Impact Corruptions 9 | . 9 . Robots Melted . | . . . Combat Hostiles . | . . . Parts Melted . | . . . Heat Transferred 100 | . 100 . Parts Sabotaged . | . . . Parts Stolen . | . . . Parts Stripped . | . . . Power Chain Reactions 1 | . 1 . Alert | -11 -10 -10 ------- Run | Yrd Mat Sub Maximum Alert Level 1 | . 1 . Low Security (%) 90 | 100 58 . Level 1 9 | . 41 . Level 2 . | . . . Level 3 . | . . . Level 4 . | . . . Level 5 . | . . . High Security . | . . . Max Security . | . . . Peak Influence 332 | . 332 . Initial . | . . . Average 37 | . 169 . Influence Increases 735 | . 715 20 Destroy 0b10 Robot/C 420 | . 400 20 Destroy 0b10 Robot/NC 35 | . 35 . Destroy Leader 94 | . 94 . Successful Hack 28 | . 28 . Disable Machine 45 | . 45 . Destroy Structure 53 | . 53 . Lose Combat Pursuer 60 | . 60 . Influence Decreases 735 | . 503 232 Entered New Map 103 | . . 103 Time Decay 543 | . 463 80 Lost Part 89 | . 40 49 Squads Dispatched 5 | . 5 . Investigation 3 | . 3 . Extermination . | . . . Reinforcement 2 | . 2 . Assault . | . . . Garrison . | . . . Intercept . | . . . Searches Triggered . | . . . Construction Impeded . | . . . Haulers Reinforced . | . . . Active Scanning Responses . | . . . Cargo Convoy Interrupts . | . . . Stealth | -11 -10 -10 --------- Run | Yrd Mat Sub Distress Signals 3 | . 3 . Communications Jammed . | . . . Distress Signals . | . . . Times Spotted 44 | . 35 9 Peak Tracking Total 5 | . 5 5 Tactical Retreats 5 | . 3 2 Traps | -11 -10 -10 ------- Run | Yrd Mat Sub Traps Triggered 3 | . 3 . Indirectly . | . . . Trap Hack Attempts . | . . . Triggered . | . . . Disarmed . | . . . Reprogrammed . | . . . Reused . | . . . Traps Extracted . | . . . Installed . | . . . Triggered . | . . . Machines | -11 -10 -10 ---------- Run | Yrd Mat Sub Machines Disabled 3 | . 3 . Max in Single Turn 1 | . 1 . Machines Repaired . | . . . Machines Dismantled . | . . . Machines Sabotaged . | . . . Overloaded Fab Kills . | . . . Hacking | -11 -10 -10 --------- Run | Yrd Mat Sub Machines Accessed 6 | . 6 . Terminals 6 | . 6 . Fabricators . | . . . Repair Stations . | . . . Recycling Units . | . . . Scanalyzers . | . . . Garrison Access . | . . . Total Hacks 11 | . 11 . Successful 5 | . 5 . Failed 6 | . 6 . Catastrophic . | . . . Database Lockouts . | . . . Manual 16 | . 16 . Terminals 11 | . 11 . Fabricators . | . . . Repair Stations . | . . . Recycling Units . | . . . Scanalyzers . | . . . Garrison Access . | . . . Terminal Hacks 3 | . 3 . Robot Analysis 1 | . 1 . Prototype ID Bank 1 | . 1 . Zone Layout 1 | . 1 . Fabricator Hacks . | . . . Repair Station Hacks . | . . . Recycling Unit Hacks . | . . . Scanalyzer . | . . . Garrison Access Hacks . | . . . Unauthorized Hacks 2 | . 2 . Terminals 2 | . 2 . Botnet 2 | . 2 . Fabricators . | . . . Repair Stations . | . . . Recycling Units . | . . . Scanalyzers . | . . . Garrison Access . | . . . Data Cores Recovered . | . . . Used . | . . . Hacking Detections 4 | . 4 . Full Trace Events . | . . . Feedback Events . | . . . Feedback Blocked . | . . . Robot Schematics Acquired . | . . . Robots Built . | . . . Authchips . | . . . Time . | . . . Total Robot Build Rating . | . . . Part Schematics Acquired . | . . . Parts Built . | . . . Authchips . | . . . Time . | . . . Total Part Build Rating . | . . . Part Studies Acquired . | . . . Parts Repaired . | . . . Time . | . . . Parts Recycled . | . . . Recycled Matter . | . . . Retrieved Matter . | . . . Retrieved Components . | . . . Parts Scanalyzed . | . . . Part Schematics Acquired . | . . . Parts Damaged . | . . . Bothacking | -11 -10 -10 ------------ Run | Yrd Mat Sub Used RIF Installer . | . . . Robots Hacked . | . . . Non-combat . | . . . Combat . | . . . Robot Hacks Applied . | . . . Relay Couplers Released . | . . . Fabnet Peak Effective % . | . . . Robots Rewired . | . . . Allies Hacked . | . . . Hacks Repelled . | . . . Allies | -11 -10 -10 -------- Run | Yrd Mat Sub Total Allies . | . . . Largest Group . | . . . Highest-Rated Group . | . . . Highest-Rated Ally . | . . . Total Orders . | . . . Ally Attacks . | . . . Total Damage . | . . . Kills . | . . . Allies Corrupted . | . . . Allies Melted . | . . . Intel | -11 -10 -10 ------- Run | Yrd Mat Sub Active Infowar (turns) 316 | . 206 110 Sensors 62 | . . 62 Seismic 254 | . 206 48 Robot Analysis Total 1 | . 1 . Derelict Logs Recovered 1 | . . 1 Drone Launches . | . . . Drone Recoveries . | . . . Exploration | -11 -10 -10 ------------- Run | Yrd Mat Sub Turns Passed 6598 | 4745 1325 528 Spaces Moved 1982 | 549 891 542 Core 485 | . . 485 Treads 4 | . 4 . Legs 14 | 14 . . Wheels 1479 | 535 887 57 Hover . | . . . Flight . | . . . Fastest Speed 50 | 90 90 50 Average Speed 104 | 90 127 79 Slowest Speed 175 | 120 175 175 Overloaded Moves . | . . . Propulsion Burnouts . | . . . Robots Hopped . | . . . Potential Cave-ins 2 | . . 2 Cave-ins Triggered 2 | . . 2 Exploration Rate (%) 68 | 66 98 42 Regions Visited 2 Branch Regions 1 Pre-discovered Areas 1 | . . 1 Known Exits Taken . | . . . Unknown Exits Taken 2 | 1 1 . Scrap Searched . | . . . Spaces Dug 9 | . 4 5 Terrain Destroyed 95 | . 62 33 Melee 9 | . 4 5 Projectile . | . . . AOE 86 | . 58 28 Terrain Rammed . | . . . Walls Destroyed . | . . . Machines Disabled . | . . . Actions | -11 -10 -10 --------- Run | Yrd Mat Sub Total 6381 | 4794 1001 586 Wait 4268 | 4244 20 4 Move 1979 | 548 890 541 Hop . | . . . Pick Up 13 | . 13 . Fast Attach 4 | . 3 1 Attach 8 | . 5 3 Detach . | . . . Swap 19 | 2 17 . Drop 6 | . 5 1 Fire 44 | . 35 9 Melee 39 | . 13 26 Ram . | . . . Kick . | . . . Crush . | . . . Escape Stasis 1 | . . 1 Rewire . | . . . Trap . | . . . Miscellaneous . | . . . Route ------- -11/Scrapyard -10/Materials (discovered 5 exits: [*Mat x3] / [*Min] / [*Sub]) -10/Subcaves History --------- Turn | Location | Event 1 | -11/Scrapyard | Discovered new exit (range 2) 4746 | -11/Scrapyard | Entered Materials 4747 | -10/Materials | Build established: Mutant 4855 | -10/Materials | Discovered new exit (range 16) 4975 | -10/Materials | Discovered new exit (range 16) 5170 | -10/Materials | Discovered new exit (range 12) 5270 | -10/Materials | Discovered new exit (range 15) 6042 | -10/Materials | Discovered new exit (range 9) 6071 | -10/Materials | Entered Subcaves 6072 | -10/Subcaves | Shifting Twisted Machinery released Flamer 6087 | -10/Subcaves | Shifting Twisted Machinery released Sub. Power Source 6090 | -10/Subcaves | Learned location of Zion (-6) 6090 | -10/Subcaves | Met a Zionite searching for "candidates" 6161 | -10/Subcaves | Core integrity fell below 50% 6198 | -10/Subcaves | Crushed by falling debris 6229 | -10/Subcaves | Lost 3 parts (1p1n1u) 6343 | -10/Subcaves | Shifting Twisted Machinery released Battle Rifle 6344 | -10/Subcaves | Shifting Twisted Machinery released Spk. Treads 6370 | -10/Subcaves | Core integrity fell below 20% 6444 | -10/Subcaves | Learned Materials terminal intel 6600 | -10/Subcaves | Crushed by falling debris 6600 | -10/Subcaves | Smashed by cave-in Last Messages --------------- 06357_ Sml. Laser fries itself beyond repair. 06360_ Acquired 30 matter. 06361_ J0-EVM(R) knocked back. 06365_ J0-EVM(R) affixes Scrap Shield Fragment to Scrap Shield. 06367_ Aluminum Leg fries itself beyond repair. 06374_ Critical hit (Burn: +37). 06375_ J0-EVM(R) destroyed. 06377_ Acquired 44 matter. 06380_ System corrupted: Matter fused (-8). 06411_ Acquired 14 matter. 06414_ Acquired 12 matter. 06415_ Acquired 7 matter. 06444_ Acquired derelict log, extracted data. Data stored: Materials terminal intel. 06503_ TS-GVY(u) tweaks Twisted Machinery. 06589_ NH-HL5(u) builds Twisted Machinery. 06600_ The unstable cave ceiling collapses. 06600_ Crushed by falling debris. 06600_ Hvy. Hammer destroyed. 06600_ System corrupted by crushing effect (+3). Map ----- +----------------------------------------------------+ | ??????????????## ##??????????????????????????????? | | ??????????????#" ##?????????????????????????????? | | ?????????????### ##????????????????????????????? | | ????????????## #????????????????????????????? | | ????????????# #????????????????????????????? | | ????????????## ####?????????????????????????? | | ?????????????# ##????????????????????????? | | ?????????????## ##???????????????????????? | | ??????????????# ##??????????????????????? | | ??????????????## #??######??????????????? | | ??????????????## ##?# #####??????????? | | ??????????????# #### ###????????? | | ??????????????# #????????? | | ??????????????## ## # #### #????????? | | ???????????????#### #### ## #?###????????? | | ?????????????##### ##?#### #????????????? | | ????????????## #????# #????????????? | | ????????????# ##???## #????????????? | | ????????????# ##?""" ##????????????? | | ????????????##""""" # ###?????????????? | | ?????????????#" " #????????????????? | | ?????????????#" " # #???????????????? | | ?????????????#" " " ### ##???????????????? | | ?????????????#""""" ##" #?? #???????????????? | | ?????????????## #### #### "#???????????????? | | ??????????????# ##??#@##? ###??????????????? | | ??????????????# ##??##" #? ##?????????????? | | ??????????????# ##??#"u"#?" #????????????## | | ??????????????# "#??#"""## ????????????? # | | ??????????????## ""#?#""""## ?????????????? # | | ???????????????## "" #?#" ""## #???????????### # | | ????????????????## #?#" ""## #??????###?## | | ?????????????????#####?# ###" #??????# ### | | ??????????????????????#"# ###"""#?????## ## # | | ??????????????????????###" ##" ####### #? | | ???????????????????????##" " #? | | ???????????????????????# ## ## | | ???????????????????????# ### | | ???????????????????????######?## ## | | ???????????????????????????????#### ##### ### | | ??????????????????????????????????####???######?## | | ?????????????????????????????????????????????????? | | ?????????????????????????????????????????????????? | | ?????????????????????????????????????????????????? | | ?????????????????????????????????????????????????? | | ?????????????????????????????????????????????????? | | ?????????????????????????????????????????????????? | | ?????????????????????????????????????????????????? | | ?????????????????????????????????????????????????? | | ?????????????????????????????????????????????????? | +----------------------------------------------------+ Best States ------------- Heat Dissipation 35 Energy Generation 10 Energy Capacity 250 Matter Stores 300 Matter Capacity 300 Sight Range 16 Robot Scan Range 14 Terrain Scan Density 10 Evasion (%) 50 Recoil Reduction 2 Item Schematics ----------------- None Robot Schematics ------------------ None Fabricated ------------ Nothing Repaired ---------- Nothing Studied --------- None Alien Tech Used ----------------- None Achievements -------------- Physics Hates This One Trick Challenges ------------ None Game ------ Seed SensorMiningAnalyzer Manual? 0 Play Time 00:30:00 Cumulative 149.8 hours Start 2026.06.25 @ 01:05:12 End 2026.06.25 @ 02:14:36 Sessions 1 Manual Loads 0 Difficulty Rogue Special Mode None Game No. 148 Rogue 148 Adventurer 0 Explorer 0 Win Type - Total 1 Types 1/0/0/0/0/0/0/0/0/0 Lore% 67 Gallery% 52 Achievement% 42 Wizard Run 0 Options --------- Layout 0 ASCII 0 Keyboard 0 Movement Mouse Keybinds 0 Fullscreen 2 Font 18/X11 Map View 76x50 Zoom Use 0% Tactical HUD 1 Map Filters NONE Filters NONE Steam 1 RUN: f30f7c81-1ab8-43a4-9af9-35d3660ca73d